bitfinex/quotes_BTCUSD_20250422
["timestamp","ask_amount","ask_price","bid_price","bid_amount"]
[1745358978010,0.0467,92676.0,92642.0,0.158323]
[1745358978247,0.01078888,92688.0,92645.0,0.00056313]
[1745358978488,0.05,92653.0,92646.0,0.158323]
[1745358978724,0.01079354,92648.0,92634.0,0.158323]
[1745358978959,0.01079354,92648.0,92614.0,0.00056313]
[1745358978960,0.09408289,92617.0,92615.0,0.158323]
[1745358979204,0.09408289,92617.0,92601.0,0.158323]
[1745358979435,0.09408289,92617.0,92597.0,0.158323]
[1745358979664,0.09408289,92617.0,92602.0,0.00056313]
[1745358979882,0.04408289,92616.0,92603.0,0.158323]
[1745358980324,0.09408289,92613.0,92591.0,0.158323]
[1745358980755,0.09408289,92613.0,92578.0,0.00056313]
[1745358980756,0.09408289,92598.0,92579.0,0.158323]
[1745358980963,0.21590149,92635.0,92579.0,0.158323]
[1745358980964,0.09408289,92580.0,92579.0,0.158323]
[1745358981169,0.0107996,92596.0,92530.0,0.21614596]
[1745358981170,0.09408289,92561.0,92552.0,0.158323]
[1745358981374,0.09408289,92561.0,92545.0,0.00056313]
[1745358981375,0.09408289,92550.0,92546.0,0.158323]
[1745358981588,0.09408289,92569.0,92555.0,0.00056313]
[1745358981802,0.09408289,92560.0,92556.0,0.158323]
[1745358982144,0.00168267,92579.0,92556.0,0.158323]
[1745358982145,0.09408289,92577.0,92556.0,0.158323]
[1745358982350,0.00168267,92579.0,92563.0,0.00056313]
[1745358982567,0.00168267,92579.0,92562.0,0.01080356]
[1745358982568,0.00214425,92579.0,92570.0,0.00056313]
[1745358982773,0.00214425,92579.0,92578.0,0.00056313]
[1745358982977,0.00214425,92579.0,92578.0,0.10886618]
[1745358983181,0.08642435,92630.0,92614.0,0.00056313]
[1745358983424,0.10830305,92629.0,92615.0,0.158323]
[1745358983847,0.09408289,92616.0,92615.0,0.158323]
[1745358984055,0.04408289,92609.0,92598.0,0.00056313]
[1745358984256,0.04408289,92609.0,92599.0,0.158323]
[1745358984257,0.10830305,92608.0,92599.0,0.158323]
[1745358984387,0.10830305,92608.0,92598.0,0.158323]
[1745358984588,0.04408289,92609.0,92606.0,0.00056313]
[1745358984589,0.10830305,92607.0,92606.0,0.00056313]
[1745358984800,0.09408289,92620.0,92611.0,0.00056313]
[1745358985007,0.09408289,92613.0,92612.0,0.158323]
[1745358985211,0.09408289,92609.0,92604.0,0.12458511]
[1745358985409,0.09408289,92606.0,92598.0,0.12458511]
[1745358985641,0.09408289,92606.0,92595.0,0.12514824]
[1745358985642,0.10830305,92605.0,92595.0,0.12514824]
[1745358985844,0.10830305,92605.0,92597.0,0.00056313]
[1745358986014,0.10830305,92605.0,92598.0,0.12514824]
[1745358986219,0.10830305,92605.0,92599.0,0.12458511]
[1745358986448,0.10830305,92605.0,92602.0,0.00056313]
[1745358986647,0.10830305,92605.0,92603.0,0.12458511]
[1745358986830,0.10830305,92605.0,92603.0,0.00056313]
[1745358987036,0.10830305,92605.0,92604.0,0.12458511]
[1745358987270,0.10830305,92605.0,92599.0,0.12458511]
[1745358988125,0.09408289,92600.0,92599.0,0.12458511]
[1745358988337,0.20238594,92600.0,92599.0,0.12458511]
[1745358989818,0.41836866,92600.0,92599.0,0.12458511]
[1745358990050,0.09408289,92599.0,92598.0,0.00013762]
[1745358990263,0.09408289,92571.0,92570.0,0.0004251]
[1745358990434,0.41843632,92571.0,92570.0,0.00056276]
[1745358991141,0.41943632,92571.0,92570.0,0.00056276]
[1745358991345,0.41943632,92571.0,92570.0,1e-08]
[1745358991748,0.09408289,92525.0,92518.0,7e-05]
[1745358991954,0.09408289,92520.0,92518.0,0.00053158]
[1745358992187,0.20238594,92519.0,92518.0,0.00053158]
[1745358992850,0.01080578,92543.0,92518.0,0.00053158]
[1745358992851,0.001,92571.0,92570.0,0.00056313]
[1745358993053,0.2157464,92702.0,92638.0,0.00056313]
[1745358993275,0.01078806,92695.0,92639.0,0.00056313]
[1745358993444,0.01078806,92695.0,92624.0,0.01079633]
[1745358993445,0.00792156,92692.0,92650.0,0.00056313]
[1745358993685,0.00792156,92692.0,92647.0,0.00056313]
[1745358993686,0.01078946,92683.0,92647.0,0.00056313]
[1745358993888,0.01078946,92683.0,92623.0,0.01079645]
[1745358993889,0.01071248,92667.0,92648.0,0.00056313]
[1745358994267,0.10830305,92662.0,92640.0,0.00056313]
[1745358994693,0.0008522,92654.0,92637.0,0.00056313]
[1745358994897,0.10830305,92653.0,92630.0,0.00056313]
[1745358995131,0.0008522,92654.0,92621.0,0.08255488]
[1745358995132,0.10830305,92648.0,92621.0,0.08255488]
[1745358995867,0.10830305,92648.0,92621.0,0.08269254]
[1745358996068,0.056794,92644.0,92600.0,0.92814268]
[1745358996280,0.10830305,92642.0,92600.0,0.92814268]
[1745358996554,0.10830305,92642.0,92601.0,0.08642435]
[1745358996725,0.01079458,92639.0,92601.0,0.08642435]
[1745358996864,0.10830305,92638.0,92601.0,0.08642435]
[1745358997065,0.3241995,92637.0,92601.0,0.08642435]
[1745358997338,0.10830305,92629.0,92590.0,0.92814268]
[1745358997550,0.22670659,92631.0,92586.0,0.00013777]
[1745358997551,0.10830305,92623.0,92586.0,0.00013777]
[1745358997757,0.10830305,92621.0,92593.0,0.08642435]
[1745358999139,0.10830305,92621.0,92600.0,0.92814268]
[1745358999567,0.10830305,92621.0,92593.0,0.08642435]
[1745358999721,0.10830305,92621.0,92600.0,0.92814268]
[1745358999927,0.01079412,92643.0,92600.0,0.92814268]
[1745358999928,0.57179425,92664.0,92603.0,0.08642435]
[1745359000135,0.15430305,92644.0,92614.0,0.08642435]
[1745359000338,0.15430305,92644.0,92620.0,0.92814268]
[1745359000916,0.10830305,92643.0,92620.0,0.92814268]
[1745359001119,0.10830305,92643.0,92603.0,0.08642435]
[1745359001358,0.10830305,92643.0,92610.0,0.92814268]
[1745359001935,0.10830305,92643.0,92603.0,0.10844082]
[1745359001936,0.01543031,92642.0,92603.0,0.10844082]
[1745359002138,0.10830305,92641.0,92610.0,0.92814268]
[1745359002477,0.046,92644.0,92630.0,0.92814268]
[1745359002723,0.15430305,92644.0,92630.0,0.92814268]
[1745359003045,0.0008522,92654.0,92634.0,0.92814268]
[1745359003284,0.0008522,92654.0,92635.0,0.08642435]
[1745359003884,0.0008522,92654.0,92635.0,0.08858312]
[1745359004311,0.0008522,92654.0,92636.0,0.10830305]
[1745359004486,0.0008522,92654.0,92637.0,0.00215853]
[1745359004687,0.0008522,92654.0,92637.0,0.11046158]
[1745359004887,0.0008522,92654.0,92635.0,0.00013777]
[1745359004888,0.10830305,92653.0,92635.0,0.00013777]
[1745359005088,0.0008522,92654.0,92640.0,0.92814268]
[1745359005493,0.01038178,92640.0,92636.0,0.10830305]
[1745359006480,0.01038178,92640.0,92636.0,0.10930305]
[1745359008093,0.01038178,92640.0,92636.0,0.001]
[1745359008298,0.01038178,92640.0,92637.0,0.11046173]
[1745359008499,0.01038178,92640.0,92637.0,0.11909787]
[1745359008699,0.01038178,92640.0,92637.0,0.10830305]
[1745359009192,0.01038178,92640.0,92637.0,0.33499251]
[1745359009392,0.01038178,92640.0,92637.0,0.11909787]
[1745359009598,0.0008522,92654.0,92653.0,0.21585917]
[1745359009804,0.0008522,92654.0,92653.0,0.21801747]
[1745359010046,0.0008522,92654.0,92653.0,0.32416222]
[1745359011828,0.01078197,92692.0,92681.0,0.21579395]
[1745359012188,0.0008536,92692.0,92681.0,0.21579395]
[1745359012389,0.0008536,92692.0,92681.0,0.32625462]
[1745359012590,0.0008536,92692.0,92681.0,0.324097]
[1745359012991,0.00131641,92682.0,92681.0,0.33863785]
[1745359013559,0.0008536,92692.0,92691.0,0.23031152]
[1745359013767,0.0008536,92692.0,92691.0,0.33861457]
[1745359013987,0.00992837,92729.0,92719.0,0.92814268]
[1745359014123,0.00992837,92729.0,92720.0,0.00215677]
[1745359014326,0.00992837,92729.0,92720.0,0.01294192]
[1745359014504,0.0463,92730.0,92724.0,0.01078469]
[1745359014709,0.0463,92730.0,92727.0,0.01078434]
[1745359014908,0.0008522,92741.0,92721.0,0.01076973]
[1745359015122,0.0008522,92741.0,92729.0,0.01078411]
[1745359015322,0.0008522,92741.0,92730.0,0.12124346]
[1745359015581,0.0008522,92741.0,92731.0,0.2156776]
[1745359015781,0.0008522,92741.0,92732.0,0.10830305]
[1745359016329,0.0008522,92741.0,92723.0,0.92814268]
[1745359017148,0.0008522,92741.0,92724.0,0.00215659]
[1745359017313,0.0008522,92741.0,92727.0,0.01078434]
[1745359017515,0.0008522,92741.0,92731.0,0.2156776]
[1745359017719,0.0008522,92741.0,92732.0,0.10830305]
[1745359017952,0.0008522,92741.0,92732.0,0.1228439]
[1745359018362,0.21552537,92797.0,92732.0,0.1228439]
[1745359018363,0.01686178,92855.0,92807.0,0.01454085]
[1745359018578,0.01686178,92855.0,92817.0,0.01454085]
[1745359018798,0.01686178,92855.0,92825.0,0.23000004]
[1745359018999,0.0481,92861.0,92825.0,0.23000004]
[1745359019728,0.00131167,92826.0,92825.0,0.23000004]
[1745359020306,0.00131167,92826.0,92825.0,0.32376224]
[1745359020522,0.0481,92861.0,92851.0,0.01076994]
[1745359020729,0.0481,92861.0,92850.0,0.92814268]
[1745359021147,0.0481,92861.0,92851.0,0.10830305]
[1745359021565,0.0481,92861.0,92858.0,0.01076913]
[1745359021767,0.0004267,92864.0,92859.0,0.10830305]
[1745359021967,0.0004267,92864.0,92861.0,0.22614374]
[1745359022086,0.0004267,92864.0,92863.0,0.21537103]
[1745359022289,0.0004267,92864.0,92863.0,0.32367408]
[1745359022879,0.0004267,92864.0,92863.0,0.10844082]
[1745359023081,7e-05,92894.0,92893.0,0.21530147]
[1745359023283,7e-05,92894.0,92893.0,0.32575686]
[1745359023491,0.0004242,92919.0,92910.0,0.0107631]
[1745359023722,0.0004242,92919.0,92917.0,0.21524586]
[1745359023936,0.0004242,92957.0,92940.0,0.01075962]
[1745359024135,0.0004242,92957.0,92941.0,0.3364026]
[1745359024340,0.0004242,92957.0,92941.0,0.10830305]
[1745359024341,0.00088833,92957.0,92941.0,0.10830305]
[1745359024550,0.00088833,92957.0,92947.0,0.92814268]
[1745359024753,0.00088833,92957.0,92948.0,0.10830305]
[1745359024963,0.00088833,92957.0,92947.0,0.92814268]
[1745359025165,0.01075951,92941.0,92920.0,0.92814268]
[1745359025396,0.00188833,92957.0,92863.0,0.08642435]
[1745359025397,0.01076055,92932.0,92890.0,0.92814268]
[1745359025602,0.0107609,92929.0,92890.0,0.92814268]
[1745359025806,0.01076182,92921.0,92890.0,0.92814268]
[1745359026030,0.21523196,92923.0,92890.0,0.92814268]
[1745359026031,0.01076287,92912.0,92890.0,0.92814268]
[1745359026251,0.05,92951.0,92850.0,0.01077005]
[1745359026252,0.01076588,92886.0,92850.0,0.92814268]
[1745359026463,0.01076716,92875.0,92820.0,0.35516]
[1745359026679,0.01076889,92860.0,92820.0,0.92814268]
[1745359026887,0.01076855,92863.0,92820.0,0.92814268]
[1745359027102,0.01076901,92859.0,92850.0,0.00013777]
[1745359027312,0.22614778,92860.0,92812.0,0.0008512]
[1745359027313,0.01077087,92843.0,92812.0,0.0008512]
[1745359027531,0.10830305,92832.0,92823.0,0.00013782]
[1745359027741,0.10830305,92832.0,92812.0,0.0008512]
[1745359027742,0.01077319,92823.0,92812.0,0.0008512]
[1745359027948,0.049,92814.0,92812.0,0.0008512]
[1745359028500,0.10830305,92813.0,92812.0,0.0008512]
[1745359028700,0.10830305,92813.0,92797.0,0.00046327]
[1745359029584,0.06630305,92813.0,92797.0,0.00046327]
[1745359029780,0.10830305,92806.0,92797.0,0.00046327]
[1745359030438,0.10830305,92805.0,92797.0,0.00046327]
[1745359031450,0.049,92814.0,92805.0,0.01077528]
[1745359031619,0.049,92841.0,92820.0,0.01077354]
[1745359031821,0.049,92841.0,92816.0,0.010774]
[1745359031822,0.049,92841.0,92821.0,0.10830305]
[1745359032048,0.049,92841.0,92824.0,0.08642435]
[1745359032204,0.049,92841.0,92825.0,0.00215425]
[1745359032405,0.0484,92872.0,92836.0,0.01077168]
[1745359032607,0.10830305,92871.0,92824.0,0.08642435]
[1745359032791,0.0484,92872.0,92841.0,0.0107711]
[1745359032998,0.0484,92872.0,92846.0,0.01077052]
[1745359033200,0.0484,92872.0,92847.0,0.11045654]
[1745359033401,0.0484,92872.0,92844.0,0.08642435]
[1745359033402,0.0484,92872.0,92863.0,0.01076855]
[1745359033602,0.0484,92872.0,92863.0,0.10830305]
[1745359034055,0.0484,92872.0,92842.0,0.01077098]
[1745359034262,0.15670305,92872.0,92845.0,0.0021535]
[1745359034434,0.15670305,92872.0,92840.0,0.92814268]
[1745359034435,0.0484,92872.0,92847.0,0.10830305]
[1745359034635,0.0484,92872.0,92841.0,0.30198365]
[1745359034636,0.0484,92898.0,92860.0,0.01076889]
[1745359034838,0.10830305,92897.0,92863.0,0.01076855]
[1745359035058,0.0484,92898.0,92872.0,0.21535015]
[1745359035240,0.0484,92898.0,92873.0,0.00215287]
[1745359035441,0.0484,92898.0,92874.0,0.2261127]
[1745359035768,0.0484,92898.0,92873.0,0.01076739]
[1745359035978,0.0484,92898.0,92872.0,0.0107675]
[1745359036277,0.0484,92898.0,92869.0,0.01076785]
[1745359036494,0.0484,92898.0,92868.0,0.01076797]
[1745359036495,0.0484,92898.0,92871.0,0.00013801]
[1745359037048,0.10830305,92897.0,92871.0,0.00013801]
[1745359037654,0.11906766,92897.0,92871.0,0.00013801]
[1745359037860,0.0107653,92891.0,92871.0,0.00013801]
[1745359038128,0.10830305,92890.0,92871.0,0.00013801]
[1745359038405,0.010766,92885.0,92871.0,0.00013801]
[1745359038616,0.10830305,92884.0,92871.0,0.00013801]
[1745359039397,0.01076727,92874.0,92871.0,0.00013801]
[1745359039573,0.10830305,92873.0,92817.0,0.01077388]
[1745359039790,0.11907044,92873.0,92834.0,0.08642435]
[1745359039974,0.01076762,92871.0,92825.0,0.10830305]
[1745359040197,0.01076762,92871.0,92824.0,0.00013807]
[1745359040198,0.01077029,92848.0,92824.0,0.00013807]
[1745359040364,0.10830305,92847.0,92824.0,0.00013807]
[1745359042791,0.01077168,92836.0,92824.0,0.00013807]
[1745359042987,0.11907484,92835.0,92824.0,0.00013807]
[1745359043292,0.01077226,92831.0,92824.0,0.00013807]
[1745359043487,0.10830305,92826.0,92778.0,0.01077841]
[1745359043691,0.10830305,92826.0,92786.0,0.08688762]
[1745359043911,0.01077295,92825.0,92786.0,0.08688762]
[1745359044132,0.10830305,92789.0,92786.0,0.00046327]
[1745359045837,0.10830305,92787.0,92775.0,0.0008516]
[1745359046207,0.00046332,92787.0,92775.0,0.0008516]
[1745359046427,0.00046332,92787.0,92777.0,0.01077853]
[1745359046645,0.00046332,92787.0,92786.0,0.3019741]
[1745359046862,0.00046332,92787.0,92786.0,0.41027715]
[1745359047738,0.00046332,92787.0,92786.0,0.1947274]
[1745359048177,0.00046332,92787.0,92786.0,0.10830305]
[1745359048389,0.00046332,92787.0,92776.0,0.08642435]
[1745359048390,0.00046332,92787.0,92777.0,0.001]
[1745359049661,0.10830305,92786.0,92777.0,0.001]
[1745359050062,0.0497,92785.0,92777.0,0.001]
[1745359050261,0.10830305,92780.0,92777.0,0.001]
[1745359050963,0.10830305,92780.0,92770.0,0.0008462]
[1745359052267,0.32387604,92776.0,92770.0,0.0008462]
[1745359053038,0.10830305,92776.0,92770.0,0.0008462]
[1745359053801,0.21558461,92771.0,92770.0,0.0008462]
[1745359054154,0.32388766,92771.0,92770.0,0.0008462]
[1745359055333,0.21560299,92764.0,92757.0,0.0008462]
[1745359055590,0.21560552,92762.0,92757.0,0.0008462]
[1745359055816,0.21561017,92760.0,92757.0,0.0008462]
[1745359055987,0.32391322,92760.0,92757.0,0.0008462]
[1745359056190,0.33469372,92760.0,92757.0,0.0008462]
[1745359056389,0.33469372,92760.0,92737.0,0.0008516]
[1745359056390,0.21563574,92749.0,92737.0,0.0008516]
[1745359056717,0.32393879,92749.0,92737.0,0.0008516]
[1745359057468,0.21566132,92738.0,92737.0,0.0008516]
[1745359057666,0.10830305,92738.0,92737.0,0.00098971]
[1745359058110,0.32396437,92738.0,92737.0,0.00098971]
[1745359058503,0.10830305,92738.0,92737.0,0.00098971]
[1745359059498,0.27609877,92757.0,92737.0,0.00098971]
[1745359059499,0.0497,92757.0,92737.0,0.00098971]
[1745359059835,0.10830305,92756.0,92737.0,0.00098971]
[1745359060033,0.0497,92757.0,92737.0,0.00098971]
[1745359060034,0.10830305,92752.0,92737.0,0.00098971]
[1745359061443,0.0497,92757.0,92737.0,0.00098971]
[1745359061444,0.10830305,92741.0,92737.0,0.00098971]
[1745359061849,0.21565899,92739.0,92737.0,0.00098971]
[1745359062046,0.10830305,92738.0,92737.0,0.00098971]
[1745359063236,0.15780305,92706.0,92704.0,0.00098432]
[1745359063767,0.0495,92706.0,92704.0,0.00098432]
[1745359063938,0.10830305,92705.0,92704.0,0.00098432]
[1745359065759,0.1947274,92705.0,92704.0,0.00098432]
[1745359066799,0.01454085,92704.0,92699.0,0.0004258]
[1745359067007,0.10830305,92700.0,92699.0,0.0004258]
[1745359067382,0.33859363,92700.0,92699.0,0.0004258]
[1745359067585,0.372484,92700.0,92699.0,0.0004258]
[1745359067820,0.372484,92700.0,92693.0,0.0008466]
[1745359067821,0.21576369,92694.0,92693.0,0.0008466]
[1745359068029,0.33860759,92694.0,92693.0,0.0008466]
[1745359068440,0.10830305,92694.0,92693.0,0.0008466]
[1745359070881,0.1228439,92694.0,92693.0,0.0008466]
[1745359071527,0.10830305,92694.0,92693.0,0.0008466]
[1745359071743,0.00013881,92705.0,92693.0,0.0008466]
[1745359071928,0.10830305,92704.0,92693.0,0.0008466]
[1745359073885,0.00013881,92705.0,92693.0,0.0008466]
[1745359073886,0.10830305,92700.0,92693.0,0.0008466]
[1745359076276,0.11909053,92700.0,92693.0,0.0008466]
[1745359076479,0.20926825,92694.0,92693.0,0.0008466]
[1745359076883,0.42503194,92694.0,92693.0,0.0008466]
[1745359078950,0.23032549,92685.0,92684.0,0.0008466]
[1745359079149,0.33862854,92685.0,92684.0,0.0008466]
[1745359079397,0.68664464,92685.0,92684.0,0.0008466]
[1745359079909,0.21585574,92655.0,92620.0,0.4789979]
[1745359080129,0.21586062,92653.0,92621.0,0.10830305]
[1745359080328,0.10830305,92652.0,92621.0,0.10830305]
[1745359081022,0.21587379,92647.0,92600.0,0.0004238]
[1745359081164,0.21586383,92651.0,92610.0,0.69733766]
[1745359081369,0.10830305,92650.0,92611.0,0.10830305]
[1745359081593,0.16231975,92650.0,92620.0,0.69733766]
[1745359081825,0.00013868,92652.0,92630.0,0.69733766]
[1745359082002,0.00013868,92652.0,92603.0,0.21597381]
[1745359082003,0.00013868,92652.0,92620.0,0.69733766]
[1745359082210,0.10830305,92651.0,92620.0,0.69733766]
[1745359082374,0.10830305,92651.0,92610.0,0.69733766]
[1745359082575,0.21586641,92650.0,92620.0,0.69733766]
[1745359082834,0.21586641,92650.0,92611.0,0.10830305]
[1745359082835,0.21589341,92639.0,92611.0,0.10830305]
[1745359083344,0.10830305,92638.0,92600.0,0.69776146]
[1745359083549,0.1947274,92638.0,92600.0,0.10872685]
[1745359083750,0.01079505,92635.0,92600.0,0.0004238]
[1745359083975,0.08642435,92618.0,92600.0,0.0004238]
[1745359084097,0.10830305,92617.0,92600.0,0.0004238]
[1745359084465,0.0107975,92614.0,92600.0,0.0004238]
[1745359084614,0.02079566,92616.0,92600.0,0.0004238]
[1745359084615,0.21596949,92606.0,92600.0,0.0004238]
[1745359084809,0.10830305,92605.0,92600.0,0.0004238]
[1745359085212,0.21597339,92604.0,92600.0,0.0004238]
[1745359085451,0.10830305,92603.0,92600.0,0.0004238]
[1745359085650,0.11830144,92603.0,92600.0,0.0004238]
[1745359086577,0.21597805,92602.0,92600.0,0.0004238]
[1745359086891,0.00013858,92605.0,92600.0,0.0004238]
[1745359086892,0.10830305,92601.0,92600.0,0.0004238]
[1745359087734,0.00013858,92605.0,92601.0,0.01079901]
[1745359087941,0.01995965,92618.0,92606.0,0.01079843]
[1745359088163,0.01995965,92618.0,92604.0,0.01079866]
[1745359088164,0.01995965,92618.0,92608.0,0.69733766]
[1745359088366,0.0453,92657.0,92609.0,0.33722054]
[1745359088567,0.10830305,92656.0,92620.0,0.69733766]
[1745359088770,0.10830305,92656.0,92621.0,0.33719051]
[1745359088971,0.08642435,92662.0,92622.0,0.00215873]
[1745359089291,0.10830305,92661.0,92623.0,0.10830305]
[1745359090314,0.10830305,92661.0,92624.0,0.01079633]
[1745359090450,0.10830305,92661.0,92630.0,0.69733766]
[1745359090658,0.08642435,92651.0,92625.0,0.10830305]
[1745359091262,0.1947274,92651.0,92613.0,0.01079762]
[1745359091458,0.1947274,92651.0,92614.0,0.11910055]
[1745359091657,0.1947274,92651.0,92615.0,0.01079738]
[1745359091868,0.1947274,92651.0,92616.0,0.10830305]
[1745359092483,0.1947274,92651.0,92616.0,0.11910032]
[1745359092708,0.1947274,92651.0,92616.0,0.10830305]
[1745359092912,0.08642435,92662.0,92621.0,0.21593375]
[1745359093103,0.08642435,92662.0,92590.0,0.0530838]
[1745359093104,0.08642435,92672.0,92637.0,0.01079482]
[1745359093309,0.10830305,92671.0,92640.0,0.70813213]
[1745359093558,0.08642435,92672.0,92650.0,0.69733766]
[1745359093718,0.08642435,92672.0,92651.0,0.10830305]
[1745359093899,0.08642435,92672.0,92652.0,0.00215817]
[1745359094106,0.0453,92699.0,92660.0,0.7081298]
[1745359094420,0.00013902,92672.0,92661.0,0.00215805]
[1745359095427,0.00013902,92672.0,92663.0,0.01079179]
[1745359095742,0.00013902,92672.0,92664.0,0.1104609]
[1745359095956,0.00013902,92672.0,92664.0,0.10830305]
[1745359097767,0.00013902,92672.0,92664.0,0.11909472]
[1745359098243,0.00013902,92672.0,92670.0,0.21581957]
[1745359098414,0.00013902,92672.0,92671.0,0.11046059]
[1745359098998,0.08642435,92706.0,92687.0,0.01078899]
[1745359099374,0.00353891,92704.0,92691.0,0.01078853]
[1745359099580,0.00353891,92704.0,92696.0,0.01078795]
[1745359099787,0.00353891,92704.0,92697.0,0.11046026]
[1745359100008,0.00353891,92704.0,92701.0,0.22653477]
[1745359100181,0.00353891,92704.0,92702.0,0.11046007]
[1745359100381,0.00353891,92704.0,92703.0,0.21574274]
[1745359100591,0.00353891,92704.0,92703.0,0.32404579]
[1745359100961,0.03996326,92719.0,92709.0,0.01078643]
[1745359101172,0.0008502,92723.0,92714.0,0.01078585]
[1745359101367,0.0008502,92723.0,92719.0,0.01454085]
[1745359101568,0.0008502,92723.0,92722.0,0.10830305]
[1745359101951,0.0008526,92743.0,92737.0,0.2302045]
[1745359102155,0.00113889,92738.0,92737.0,0.33850755]
[1745359102533,0.08642435,92805.0,92761.0,0.01078039]
[1745359102747,0.08642435,92794.0,92777.0,0.01077853]
[1745359102951,0.08642435,92784.0,92778.0,0.11045823]
[1745359103123,0.08642435,92784.0,92778.0,0.10830305]
[1745359103333,0.08642435,92794.0,92779.0,0.0107783]
[1745359103468,0.08642435,92794.0,92784.0,0.69733766]
[1745359103666,0.00131075,92798.0,92788.0,0.01077725]
[1745359103872,0.00131075,92798.0,92793.0,0.01077667]
[1745359104075,0.00131075,92798.0,92795.0,0.01077644]
[1745359104277,0.0008518,92824.0,92817.0,0.01077388]
[1745359104522,0.00099071,92824.0,92818.0,0.14909183]
[1745359104697,0.00099071,92824.0,92818.0,0.10830305]
[1745359105192,0.00099071,92824.0,92823.0,0.21546383]
[1745359105399,0.00099071,92824.0,92823.0,0.33830773]
[1745359105611,0.0008484,92831.0,92830.0,0.22998844]
[1745359105816,0.0008484,92831.0,92830.0,0.33829149]
[1745359106017,0.06519817,92842.0,92840.0,0.21542356]
[1745359106247,0.06519817,92842.0,92841.0,0.10830305]
[1745359106455,0.06519817,92842.0,92830.0,0.69733766]
[1745359106731,0.08642435,92838.0,92820.0,0.69733766]
[1745359106880,0.08642435,92838.0,92820.0,0.80564071]
[1745359107872,0.08642435,92838.0,92820.0,0.69733766]
[1745359108077,0.1947274,92838.0,92810.0,0.69733766]
[1745359108294,0.08642435,92817.0,92797.0,0.00013891]
[1745359108568,0.2155033,92806.0,92797.0,0.00013891]
[1745359108789,0.08642435,92807.0,92797.0,0.00013891]
[1745359108790,0.21552188,92798.0,92797.0,0.00013891]
[1745359109095,0.10830305,92798.0,92797.0,0.00013891]
[1745359109536,0.047,92805.0,92797.0,0.00013891]
[1745359109933,0.047,92805.0,92780.0,0.69733766]
[1745359109934,0.07973902,92842.0,92662.0,0.001]
[1745359109935,0.34,92783.0,92662.0,0.001]
[1745359110154,0.0923,92758.0,92710.0,0.69733766]
[1745359110382,0.0923,92758.0,92711.0,0.00215689]
[1745359110621,0.0923,92758.0,92720.0,0.01078515]
[1745359110837,0.0923,92758.0,92716.0,0.21571234]
[1745359111075,0.047,92758.0,92740.0,0.10830305]
[1745359111298,0.047,92784.0,92750.0,0.10830305]
[1745359111539,0.047,92784.0,92757.0,0.01078085]
[1745359111770,0.047,92784.0,92761.0,0.01078039]
[1745359112032,0.047,92784.0,92762.0,0.10830305]
[1745359112465,0.0471386,92784.0,92762.0,0.10830305]
[1745359113077,0.0471386,92784.0,92734.0,0.01454085]
[1745359113295,0.10830305,92783.0,92740.0,0.69733766]
[1745359113492,0.10830305,92783.0,92741.0,0.10830305]
[1745359113955,0.21556137,92781.0,92741.0,0.10830305]
[1745359114181,0.10830305,92780.0,92741.0,0.10830305]
[1745359114786,0.10830305,92780.0,92730.0,0.69733766]
[1745359114990,0.10830305,92780.0,92731.0,0.10830305]
[1745359115227,0.10830305,92780.0,92734.0,0.01078353]
[1745359115426,0.0471386,92784.0,92752.0,0.01078143]
[1745359115684,0.0471386,92784.0,92754.0,0.0107812]
[1745359115891,0.0471386,92784.0,92755.0,0.10830305]
[1745359116095,0.0471386,92784.0,92766.0,0.01077981]
[1745359116240,0.0001386,92784.0,92776.0,0.01077864]
[1745359116460,0.0001386,92784.0,92777.0,0.10830305]
[1745359117049,0.0001386,92784.0,92781.0,0.01077806]
[1745359117248,0.0001386,92784.0,92782.0,0.10830305]
[1745359117465,0.0001386,92784.0,92779.0,0.0107783]
[1745359117466,0.0001386,92784.0,92783.0,0.34055561]
[1745359117670,0.047,92811.0,92799.0,0.01077597]
[1745359117868,0.047,92811.0,92800.0,0.10830305]
[1745359118159,0.0008502,92821.0,92800.0,0.10830305]
[1745359118366,0.00098898,92821.0,92800.0,0.10830305]
[1745359118579,0.00098898,92821.0,92804.0,0.01077539]
[1745359118799,0.00098898,92821.0,92810.0,0.0107747]
[1745359119013,0.00098898,92821.0,92811.0,0.11045738]
[1745359119414,0.00098898,92821.0,92816.0,0.10830305]
[1745359119653,0.047,92866.0,92832.0,0.01077214]
[1745359119863,0.047,92866.0,92828.0,0.21545016]
[1745359119864,0.047,92866.0,92840.0,0.91276204]
[1745359120068,0.047,92866.0,92841.0,0.10830305]
[1745359120475,0.08642435,92853.0,92810.0,1.05265766]
[1745359120723,0.08642435,92853.0,92814.0,0.01077423]
[1745359120897,0.08642435,92853.0,92815.0,0.11907717]
[1745359121304,0.08642435,92853.0,92815.0,0.10830305]
[1745359121507,0.08642435,92853.0,92810.0,1.05265766]
[1745359121508,0.08642435,92831.0,92810.0,0.35532]
[1745359121710,0.15670305,92830.0,92780.0,0.69733766]
[1745359122077,0.21547312,92819.0,92781.0,0.10830305]
[1745359122388,0.08642435,92809.0,92760.0,0.69733766]
[1745359122611,0.21551617,92801.0,92766.0,0.10830305]
[1745359122842,0.10830305,92800.0,92766.0,0.10830305]
[1745359123064,0.0484,92799.0,92765.0,0.35570315]
[1745359123321,0.21552845,92796.0,92765.0,0.00046315]
[1745359123514,0.08642435,92789.0,92765.0,0.00046315]
[1745359123684,0.10830305,92788.0,92765.0,0.00046315]
[1745359124383,0.0464,92787.0,92765.0,0.00046315]
[1745359124559,0.10830305,92786.0,92765.0,0.00046315]
[1745359127096,0.0484,92799.0,92777.0,0.01077853]
[1745359127295,0.0484,92799.0,92774.0,0.22635652]
[1745359127296,0.0484,92799.0,92778.0,0.10830305]
[1745359127497,0.0461,92829.0,92790.0,0.01077702]
[1745359127710,0.046,92828.0,92793.0,0.01077667]
[1745359127923,0.046,92828.0,92794.0,0.10830305]
[1745359128995,0.10830305,92827.0,92794.0,0.10830305]
[1745359129189,0.10830305,92827.0,92794.0,0.10844183]
[1745359129746,0.13698579,92827.0,92794.0,0.00013878]
[1745359129990,0.08642435,92821.0,92794.0,0.00013878]
[1745359130197,0.10830305,92820.0,92794.0,0.00013878]
[1745359136071,0.046,92857.0,92831.0,0.01077226]
[1745359136393,0.046,92857.0,92832.0,0.00215435]
[1745359136591,0.046,92857.0,92830.0,0.69733766]
[1745359136766,0.10830305,92856.0,92820.0,0.69733766]
[1745359136946,0.10830305,92856.0,92825.0,0.01077295]
[1745359137148,0.10830305,92856.0,92826.0,0.00215419]
[1745359137394,0.10844178,92856.0,92826.0,0.00215419]
[1745359137595,0.10844178,92856.0,92826.0,0.01292703]
[1745359137776,0.10844178,92856.0,92826.0,0.00215419]
[1745359137972,0.10844178,92856.0,92826.0,0.01292703]
[1745359138532,0.00013873,92856.0,92840.0,0.69733766]
[1745359138701,0.00013873,92856.0,92848.0,0.01077029]
[1745359138845,0.00013873,92856.0,92849.0,0.00215371]
[1745359139057,0.00013873,92856.0,92853.0,0.01076971]
[1745359139268,0.00013873,92856.0,92854.0,0.00215365]